{"text_format":"1","workbook":"xlsx","n_sheets":4,"sheets":["Inicio","Captura","Resultado","Pre - Calculadora (2)"],"not_rendered":{"charts":0,"images":2,"macros":1,"external_links":0,"defined_names":0,"comments":0,"pivot_tables":0},"unopened":[],"bounds":{"document_bytes":16777216,"sheet_cells":100000,"rows_first":2000,"rows_last":500,"rows_between":2000,"halvings":0,"cell_chars":16384,"cell_head_chars":4096},"cells_cut":0,"cells_raw":0,"read":"whole","date_system":"1900"}

{"sheet":"Inicio","index":0,"n_rows":7,"n_cols":1,"rows_kept":7,"cut":false,"hidden":false,"merged":[[0,0,0,6],[1,0,1,6],[2,0,2,6],[3,0,3,6],[6,0,6,6],[5,0,5,6]]}
["CALCULADORA "]
["Presupuestación del Capítulo 1000: Servicios personales "]
["Ejercicio fiscal 2025"]
["Descripción: Instrumento que tiene por objeto ser una herramienta de apoyo para la presupuestación del capítulo 1000 en cumplimiento con la disposición establecida en el artículo 10 de la Ley de Disciplina Financiera de las Entidades Federativas y los Municipios. No sustituye al cálculo que pueda realizar cada municipio. "]
[]
["LDFEFM. Artículo 10. La asignación global de recursos para servicios personales que se apruebe en el  Presupuesto de Egresos, tendrá como límite, el producto que resulte de aplicar el monto aprobado en el Presupuesto de Egresos del ejercicio inmediato anterior, una tasa de crecimiento equivalente al valor que resulte menor entre:\n\na)El 3 por ciento de crecimiento real; y \nb)El crecimiento real del Producto Interno Bruto señalado en los Criterios  Generales de Política Económica para el ejercicio que se está presupuestando. En caso de que el Producto Interno Bruto presente una variación real negativa para el ejercicio que se está presupuestando, se deberá considerar un crecimiento real igual a cero.\n\nSe exceptúa del cumplimiento de la regla el monto erogado por sentencias laborales definitivas emitidas por la autoridad competente.  \n\nLos gastos en servicios personales que sean estricamente indispensables para la implementación de nuevas leyes o reformas a las mismas, podrán autorizarse sin sujetarse al límite establecido en la regla, hasta por el monto que específicamente se requiera para dar cumplimiento a la ley respectiva.\n\n"]
["Nota: Este instumento está elaborado con base en la información contenida en los Criterios Generales de Política Económica para la Iniciativa de Ley de Ingresos y el Proyecto de Presupuesto de Egresos de la Federación correspondientes al ejercicio fiscal 2025.  Los resultados que arroje la calculadora tendrá fines exclusivamente indicativos. No exime al municipio de realizar el cálculo correspondiente. \n\nDe acuerdo con el Artículo 3 de la Ley de Disciplina Financiera de las Entidades Federativas y los Municipios, a falta de disposición expresa en dicha Ley, se aplicarán supletoriamente la Ley Federal de Presupuesto y Responsabilidad Hacendaria, la Ley General de Contabilidad Gubernamental y la Ley de de Coordinación Fiscal; y se estará a la interpretación de la Secretaría de Hacienda y Crédito Público para efectos administrativos. "]

{"sheet":"Captura","index":1,"n_rows":20,"n_cols":6,"rows_kept":20,"cut":false,"hidden":false,"merged":[[19,0,19,6],[4,0,4,6],[16,1,16,3],[9,1,9,4],[11,0,11,6],[8,1,8,4],[16,5,16,6],[0,0,0,6],[1,0,1,6],[2,0,2,6],[5,1,5,5],[7,1,7,4]]}
["CALCULADORA "]
["Presupuestación del Capítulo 1000: Servicios personales "]
["Ejercicio fiscal 2025"]
[]
["Instrucciones\n\n1. Da clic en el botón \"Ingresa el monto aprobado para el Capítulo 1000 en el Presupuesto de Egresos 2024\", captura el monto y pulsa \"aceptar\". Aparecerá un cuadro de diálogo con el monto máximo a aprobar para el año 2025, da clic en a \"aceptar\".\n2. Presiona el botón \"Visualiza valores\"."]
[null,"Marco macroeconómico, 2024 - 2025"]
[]
[null,"Variables",null,null,null,"Valor"]
[null,"Tasa de inflación dic 2023/dic 2024",null,null,null,4.3]
[null,"Crecimiento real del PIB 2025 (%)*",null,null,null,2.2999999999999998]
[]
["*Nota: En los Criterios Generales de Política Económica se estable un rango de crecimiento del PIB para el ejercicio fiscal 2025 de 2.0 a 3.0, sin embargo, en la página 29 se indica que se considera una tasa de crecimiento del PIB de 2.3%. "]
[]
[1,null,null,null,2]
[]
[null,null,null,null,null,{"$f":"Resultado!$F$18","v":0}]
[null,null,null,null,null,{"$f":"$F$16","v":0}]
[]
[]
["Sustento normativo\n\nLey de Disciplina Financiera de las Entidades Federativas y los Municipios. Última Reforma DOF 10-05-2022.\nCriterios Generales de Política Económica para la Iniciativa de la Ley de Ingresos y el Proyecto de Presupuesto de Egresos de la Federación correspondientes al Ejercicio Fiscal 2025."]

{"sheet":"Resultado","index":2,"n_rows":20,"n_cols":6,"rows_kept":20,"cut":false,"hidden":false,"merged":[[14,1,14,4],[15,1,15,4],[16,1,16,4],[19,0,19,5],[17,1,17,4],[10,1,10,4],[11,1,11,4],[12,1,12,4],[13,1,13,4],[0,0,0,6],[1,0,1,6],[2,0,2,6],[4,1,4,5],[6,1,6,4],[7,1,7,4],[8,1,8,4]]}
["CALCULADORA "]
["Presupuestación del Capítulo 1000: Servicios personales "]
["Ejercicio fiscal 2025"]
[]
[null,"Marco macroeconómico, 2024 - 2025"]
[]
[null,"Variables",null,null,null,"Valor"]
[null,"Tasa de inflación dic 2023/dic 2024",null,null,null,4.3]
[null,"Crecimiento real del PIB 2025 (%)",null,null,null,2.2999999999999998]
[]
[null,"CALCULADORA",null,null,null,"MONTO (PESOS)"]
[null,"Monto aprobado para el Capítulo 1000 en el Presupuesto de Egresos 2024",null,null,null,{"$f":"Captura!$B$17","v":0}]
[null,"Inflación del monto aprobado del Capítulo 1000, 2024",null,null,null,{"$f":"($F$8/100)*F12","v":0}]
[null,"Monto del Capítulo 1000 aprobado en  2024 actualizado por la inflación",null,null,null,{"$f":"$F$12+$F$13","v":0}]
[null,"Crecimiento del Capítulo 1000*  ",null,null,null,{"$f":"F14*($F$9/100)","v":0}]
[null,"Tasa de crecimiento nominal (%)",null,null,null,{"$f":"IFERROR((($F$18/$F$12)-1)*100,\" \")","v":" "}]
[null,"Tasa de crecimiento real (%)",null,null,null,{"$f":"IFERROR((($F$18/$F$14)-1)*100,\" \")","v":" "}]
[null,"Monto máximo a aprobar para el Capítulo 1000 en el Presuesto de Egresos 2025",null,null,null,{"$f":"(((($F$12)*($F$8/100))+$F$12)*($F$9/100))+((($F$12)*($F$8/100))+$F$12)","v":0}]
[]
["* Es el resultado de multiplicar el monto del Capítulo 1000 aprobado en el Ejercicio Fiscal 2024  actualizado por la inflación por la proyección de la tasa de crecimiento real del PIB para el año 2025."]

{"sheet":"Pre - Calculadora (2)","index":3,"n_rows":47,"n_cols":7,"rows_kept":47,"cut":false,"hidden":true,"merged":[[33,0,33,4],[34,0,34,4],[35,0,35,4],[36,0,36,4],[25,1,25,4],[27,0,27,6],[29,0,29,4],[30,0,30,4],[31,0,31,4],[32,0,32,4],[24,1,24,4],[0,0,0,6],[1,0,1,6],[2,0,2,6],[3,0,3,6],[5,0,5,6],[7,0,7,6],[15,0,15,6],[16,0,16,6],[17,0,17,6],[21,1,21,5],[23,1,23,4]]}
["PRE-CALCULADORA "]
["Para la presupuestación del Capítulo 1000: Servicios personales "]
["Ejercicio fiscal 2025"]
["Descripción: Instrumento que tiene por objeto ser un instrumento de apoyo para la presupuestación del capítulo 1000 en cumplimiento con la disposición establecida en el artículo 10 de la Ley de Disciplina Finaciera de las Entidades Federativas y los Municipios . No sustituye al cálculo que pueda realizar cada municipio. "]
[]
["LDFEFM. Artículo 10.La asignación global de recursos para servicios personales que se apruebe en el  Presupuesto de Egresos, tendrá como límite, el producto que resulte de aplicar el monto aprobado en el Presupuesto de Egresos del ejercicio inmediato anterior, una tasa de crecimiento equivalente al valor que resulte menor entre:\n\na)El 3 por ciento de crecimiento real; y \nb)El crecimiento real del Producto Interno Bruto señalado en los Criterios  Generales de Política Económica para el ejercicio que se está presupuestando. En caso de que el Producto Interno Bruto presente una variación real negativa para el ejercicio que se está presupuestando, se deberá considerar un crecimiento real igual a cero.\n\nSe exceptúa del cumplimiento de la regla el monto erogado por sentencias laborales definitivas emitidas por la autoridad competente.  \n\nLos gastos en servicios personales que sean estricamente indispensables para la implementación de nuevas leyes o reformas a las mismas, podrán autorizarse sin sujetarse al límite establecido en la regla, hasta por el monto que específicamente se requiera para dar cumplimiento a la ley respectiva.\n\n"]
[]
["Nota: Este instumento está elaborado con base en la información contenida en el Documento Relativo al Cumplimiento de las Disposiciones contenidas en el artículo 42, fracción I, de la Ley Federal de Presupuesto y Responsabilidad Hacendaria. PRE- CRITERIOS 2025, sin embargo, para la estimación definitiva deberá considerarse la información publicada en los Criterios Generales de Política Económica para la Iniciativa de Ley de Ingresos y el Proyecto de Presupuesto de Egresos de la Federación correspondientes al ejercicio fiscal 2025. "]
[]
[]
[]
[]
[]
[]
[]
["PRE-CALCULADORA "]
["Para la presupuestación del Capítulo 1000: Servicios personales "]
["Ejercicio fiscal 2025"]
[]
["Instrucciones: Inserte la información solicitada. "]
[]
[null,"Marco macroeconómico, 2024 - 2025"]
[]
[null,"Variables",null,null,null,"Valor"]
[null,"Tasa de inflación dic 2023/dic 2024",null,null,null,4.5]
[null,"Crecimiento real del PIB 2025 (%)*",null,null,null,2.6]
[]
["Nota: En los Pre - Criterios se estable un rango de crecimiento del PIB para el ejercicio fiscal 2025 de 2.0 a 3.0, sin embargo, en la página 35, a pie de página, se establece que se considera una tasa de crecimiento del PIB de 2.5% "]
[]
["Calculadora",null,null,null,null,"Monto (Pesos)"]
["Monto aprobado para el Capítulo 1000 en el Presupuesto de Egresos 2024",null,null,null,null,62680220,"Capturar"]
["Inflación del Capítulo 1000 aprobado  del Presupuesto de Egresos 2024",null,null,null,null,{"$f":"($F$25/100)*F31","v":2820609.9}]
["Capítulo 1000 aprobado del Presupuesto de Egresos 2024 con inflación",null,null,null,null,{"$f":"$F$31+$F$32","v":65500829.899999999}]
["Capítulo 1000 aprobado del Presupuesto de Egresos 2024 con inflación por la tasa de crecimiento real ",null,null,null,null,{"$f":"F33*($F$26/100)","v":1703021.5774000001}]
["Tasa de crecimiento nominal (%)",null,null,null,null,{"$f":"(($F$37/$F$31)-1)*100","v":7.2170000000000067}]
["Tasa de crecimiento real (%)",null,null,null,null,{"$f":"(($F$37/$F$33)-1)*100","v":2.6000000000000023}]
["Monto máximo a aprobar para el Capítulo 1000 en el Presuesto de Egresos 2025",null,null,null,null,{"$f":"(((($F$31)*($F$25/100))+$F$31)*($F$26/100))+((($F$31)*($F$25/100))+$F$31)","v":67203851.477400005}]
[]
[null,null,null,null,null,{"$f":"F31*0.038","v":2381848.36}]
[]
[]
[null,null,null,null,null,{"$f":"F33+F34","v":67203851.477400005}]
[null,null,null,null,null,{"$f":"F31*3.8/100","v":2381848.36}]
[null,null,null,null,null,{"$f":"F25/100","v":4.4999999999999998E-2}]
[]
[]
[null,null,null,null,null,{"$f":"F33*0.025","v":1637520.7475000001}]